bitfinex-derivatives/quotes_SOLF0:USTF0_20250109
["timestamp","ask_amount","ask_price","bid_price","bid_amount"]
[1736429938898,25.45422256,187.48,187.31,25.45422256]
[1736429939092,25.45422256,187.45,187.31,25.45422256]
[1736429939496,2.6695,187.4,187.35,2.6701]
[1736429940204,25.45422256,187.45,187.36,2.67]
[1736429940908,25.45422256,187.45,187.3,3.1525]
[1736429941198,2.6695,187.4,187.35,2.67]
[1736429941401,25.45422256,187.45,187.3,3.1525]
[1736429941798,2.6693,187.42,187.37,2.6698]
[1736429941999,25.45422256,187.48,187.31,25.45422256]
[1736429942505,25.45422256,187.51,187.34,25.45422256]
[1736429942998,1.5186,187.53,187.34,25.45422256]
[1736429942999,25.45422256,187.48,187.34,25.45422256]
[1736429943201,4.0,187.45,187.31,25.45422256]
[1736429943400,4.0,187.45,187.39,2.6693]
[1736429943596,4.0,187.45,187.28,1.06791969]
[1736429943893,2.669,187.43,187.35,2.6699]
[1736429944093,4.0,187.45,187.32,1.5141]
[1736429944800,4.0,187.45,187.34,25.45422256]
[1736429944998,4.0,187.45,187.44,2.6687]
[1736429945207,25.45422256,187.57,187.4,25.45422256]
[1736429945398,25.45422256,187.6,187.44,25.45422256]
[1736429945598,25.45422256,187.6,187.41,1.5591]
[1736429945599,1.06604125,187.61,187.47,25.45422256]
[1736429945803,25.45422256,187.63,187.47,25.45422256]
[1736429946002,2.6665,187.6,187.54,2.6673]
[1736429946201,2.6665,187.6,187.45,1.5725]
[1736429946202,25.45422256,187.6,187.45,1.5725]
[1736429946603,2.6668,187.58,187.52,2.6676]
[1736429946803,25.45422256,187.63,187.45,1.5725]
[1736429947107,1.5839,187.64,187.47,25.45422256]
[1736429947507,25.45422256,187.66,187.5,25.45422256]
[1736429947708,1.5191,187.69,187.53,25.45422256]
[1736429947709,1.5839,187.68,187.53,25.45422256]
[1736429947905,83.26,187.81,187.54,1.5591]
[1736429948105,3.0676,187.78,187.56,25.45422256]
[1736429948301,25.45422256,187.77,187.59,25.45422256]
[1736429948809,2.6645,187.74,187.62,25.45422256]
[1736429949012,25.45422256,187.77,187.62,25.45422256]
[1736429949307,2.6641,187.77,187.68,2.6652]
[1736429949608,2.6641,187.77,187.62,25.45422256]
[1736429949812,25.45422256,187.8,187.7,2.665]
[1736429950017,2.6638,187.79,187.65,25.45422256]
[1736429950207,2.6638,187.79,187.66,3.0577]
[1736429950409,25.45422256,187.83,187.68,25.45422256]
[1736429950609,25.45422256,187.86,187.71,25.45422256]
[1736429951011,2.6629,187.85,187.78,2.6638]
[1736429951213,25.45422256,187.83,187.69,1.5563]
[1736429951908,25.45422256,187.73,187.37,0.18704]
[1736429952213,25.45422256,187.7,187.53,25.45422256]
[1736429952413,25.45422256,187.67,187.54,3.0639]
[1736429952612,2.6666,187.59,187.52,1.5947]
[1736429952913,2.6666,187.59,187.38,38.00157233]
[1736429952914,25.45422256,187.61,187.44,25.45422256]
[1736429953113,2.667,187.56,187.49,2.6679]
[1736429953305,25.45422256,187.58,187.49,2.6679]
[1736429953508,25.45422256,187.54,187.39,3.0639]
[1736429953711,25.45422256,187.54,187.39,4.6586]
[1736429954108,1.5205,187.63,187.44,2.6687]
[1736429954109,2.6671,187.56,187.44,2.6687]
[1736429954313,25.45422256,187.57,187.44,2.6687]
[1736429954513,25.45422256,187.54,187.39,4.6586]
[1736429954714,25.45422256,187.57,187.39,4.6586]
[1736429954914,25.45422256,187.57,187.45,2.6685]
[1736429955310,25.45422256,187.57,187.39,4.6586]
[1736429955614,25.45422256,187.6,187.42,25.45422256]
[1736429956512,25.45422256,187.6,187.45,25.45422256]
[1736429957117,25.45422256,187.57,187.42,25.45422256]
[1736429957522,2.6671,187.56,187.45,25.45422256]
[1736429957821,1.5102,187.62,187.48,25.45422256]
[1736429958023,2.667,187.56,187.49,2.6678]
[1736429958322,1.5102,187.62,187.45,25.45422256]
[1736429958519,2.6664,187.6,187.53,2.6674]
[1736429958916,2.6664,187.6,187.48,25.45422256]
[1736429959117,1.5102,187.62,187.45,25.45422256]
[1736429959323,25.45422256,187.6,187.45,25.45422256]
[1736429959512,1.5102,187.62,187.45,25.45422256]
[1736429959716,1.5102,187.62,187.48,25.45422256]
[1736429960023,108.65422256,187.68,187.51,25.45422256]
[1736429960218,108.65422256,187.68,187.52,1.6089]
[1736429960219,25.45422256,187.68,187.52,1.6089]
[1736429960416,25.45422256,187.68,187.52,4.5969]
[1736429960719,25.45422256,187.68,187.59,2.6665]
[1736429960917,1.5499,187.69,187.54,25.45422256]
[1736429961616,2.666,187.63,187.56,2.667]
[1736429961828,25.45422256,187.65,187.52,3.0944]
[1736429962118,25.45422256,187.65,187.44,1.5025]
[1736429962119,25.45422256,187.59,187.44,1.5025]
[1736429962324,25.45422256,187.56,187.4,3.0188]
[1736429963217,25.45422256,187.53,187.4,3.0188]
[1736429963918,2.6678,187.51,187.44,2.6686]
[1736429964115,25.45422256,187.56,187.4,3.0188]
[1736429964715,25.45422256,187.56,187.41,25.45422256]
[1736429965125,2.6678,187.5,187.41,25.45422256]
[1736429965319,25.45422256,187.56,187.41,25.45422256]
[1736429965521,25.45422256,187.62,187.44,25.45422256]
[1736429965726,25.45422256,187.62,187.47,25.45422256]
[1736429966419,26.35399309,187.64,187.5,25.45422256]
[1736429966625,2.6661,187.62,187.57,2.6668]
[1736429966824,25.45422256,187.68,187.52,1.5513]
[1736429967325,2.6659,187.64,187.55,2.6671]
[1736429967521,25.45422256,187.65,187.52,1.5513]
[1736429967722,25.45422256,187.55,187.27,37.99620915]
[1736429967923,25.45422256,187.55,187.4,3.0487]
[1736429968130,25.45422256,187.58,187.41,25.45422256]
[1736429968329,25.45422256,187.61,187.44,25.45422256]
[1736429968829,25.45422256,187.58,187.41,25.45422256]
[1736429969025,1.5771,187.57,187.41,25.45422256]
[1736429969431,2.6677,187.52,187.46,2.6682]
[1736429969925,1.5771,187.57,187.41,25.45422256]
[1736429970133,2.6677,187.52,187.41,25.45422256]
[1736429970329,1.5771,187.57,187.44,25.45422256]
[1736429970722,1.5771,187.57,187.41,25.45422256]
[1736429971131,25.45422256,187.55,187.4,25.45422256]
[1736429971332,1.5771,187.57,187.41,3.1188]
[1736429971523,25.45422256,187.55,187.41,3.1188]
[1736429972230,25.45422256,187.55,187.4,25.45422256]
[1736429972429,25.45422256,187.55,187.37,25.45422256]
[1736429972831,2.6678,187.5,187.42,2.6689]
[1736429973033,2.6678,187.5,187.37,25.45422256]
[1736429973329,2.6678,187.5,187.45,2.6685]
[1736429973530,2.6678,187.5,187.4,25.45422256]
[1736429973930,25.45422256,187.55,187.4,25.45422256]
[1736429974129,1.5771,187.57,187.4,25.45422256]
[1736429974832,2.6676,187.52,187.47,2.6682]
[1736429975134,2.6676,187.52,187.4,25.45422256]
[1736429975729,2.667,187.56,187.43,25.45422256]
[1736429976031,1.5199,187.6,187.43,25.45422256]
[1736429976239,2.6678,187.51,187.4,25.45422256]
[1736429976427,25.45422256,187.58,187.4,25.45422256]
[1736429977029,25.45422256,187.58,187.48,2.668]
[1736429977238,25.45422256,187.55,187.4,25.45422256]
[1736429977432,25.45422256,187.52,187.37,25.45422256]
[1736429977838,2.668,187.49,187.37,25.45422256]
[1736429978037,25.45422256,187.56,187.37,25.45422256]
[1736429978233,25.45422256,187.56,187.44,2.6686]
[1736429978837,25.45422256,187.56,187.47,2.6682]
[1736429979228,25.45422256,187.56,187.37,25.45422256]
[1736429979531,25.45422256,187.56,187.36,3.1188]
[1736429979734,25.45422256,187.51,187.36,3.1188]
[1736429980238,1.59,187.5,187.36,3.1188]
[1736429980438,1.59,187.5,187.4,2.6692]
[1736429980633,1.59,187.5,187.36,3.1188]
[1736429981636,1.59,187.5,187.36,1.5]
[1736429982036,25.45422256,187.44,187.31,1.4832]
[1736429982845,2.6692,187.41,187.35,2.6699]
[1736429983143,25.45422256,187.47,187.31,26.93742256]
[1736429984146,25.45422256,187.44,187.31,1.4832]
[1736429984339,25.45422256,187.44,187.3,0.21242]
[1736429984535,25.45422256,187.41,187.3,0.21242]
[1736429984942,1.5785,187.4,187.3,0.21242]
[1736429985642,2.6698,187.37,187.3,0.21242]
[1736429985848,1.5785,187.4,187.3,0.21242]
[1736429986244,2.6695,187.38,187.33,2.6701]
[1736429986446,2.6695,187.38,187.3,0.21242]
[1736429986647,2.6695,187.38,187.34,2.6701]
[1736429987047,2.6694,187.39,187.3,0.21242]
[1736429987246,25.45422256,187.44,187.3,0.21242]
[1736429987446,25.45422256,187.47,187.31,25.45422256]
[1736429987749,2.6691,187.42,187.37,2.6696]
[1736429987944,25.45422256,187.47,187.32,1.6389]
[1736429988341,25.45422256,187.47,187.32,3.1216]
[1736429988941,25.45422256,187.47,187.36,2.6698]
[1736429989144,25.45422256,187.47,187.32,3.1216]
[1736429990053,2.6687,187.44,187.32,3.1216]
[1736429990256,1.5785,187.48,187.34,25.45422256]
[1736429990456,25.45422256,187.53,187.37,25.45422256]
[1736429991060,3.0561,187.57,187.39,2.6693]
[1736429991061,2.6687,187.44,187.39,2.6693]
[1736429991351,25.45422256,187.5,187.32,3.1216]
[1736429991855,2.6692,187.41,187.32,3.1216]
[1736429992458,2.6693,187.4,187.32,3.1216]
[1736429993448,2.6693,187.4,187.36,2.6697]
[1736429994455,2.6693,187.4,187.31,27.01372256]
[1736429994456,2.6693,187.4,187.31,2.6705]
[1736429994756,25.45422256,187.38,187.3,0.21242]
[1736429995258,25.45422256,187.41,187.3,0.21242]
[1736429995458,25.45422256,187.44,187.3,0.21242]
[1736429995659,25.45422256,187.44,187.35,2.6698]
[1736429995862,25.45422256,187.44,187.3,0.21242]
[1736429996060,1.5317,187.46,187.32,25.45422256]
[1736429996256,2.6689,187.43,187.38,2.6695]
[1736429996451,1.5317,187.46,187.38,2.6695]
[1736429996658,1.5317,187.46,187.32,25.45422256]
[1736429997352,25.45422256,187.5,187.32,25.45422256]
[1736429998151,25.45422256,187.5,187.35,25.45422256]
[1736429998354,1.5193,187.51,187.36,3.1013]
[1736429998555,2.6684,187.47,187.42,2.6689]
[1736429998755,1.5193,187.51,187.36,4.5776]
[1736429999159,25.45422256,187.53,187.45,2.6684]
[1736429999160,2.668,187.49,187.45,2.6684]
[1736429999759,2.668,187.49,187.38,25.45422256]
[1736429999963,2.6682,187.48,187.38,25.45422256]
[1736430000165,2.6682,187.48,187.41,2.6691]
[1736430000357,25.45422256,187.5,187.36,4.5776]
[1736430000764,25.45422256,187.47,187.36,3.1013]
[1736430000954,2.6693,187.4,187.3,0.21242]
[1736430001156,25.45422256,187.41,187.3,0.21242]
[1736430001758,25.45422256,187.44,187.31,2.6705]
[1736430001962,25.45422256,187.44,187.3,0.21242]
[1736430002166,25.45422256,187.44,187.29,1.5442]
[1736430002567,2.6701,187.35,187.29,1.5442]
[1736430002968,25.45422256,187.44,187.34,2.6701]
[1736430003165,2.6694,187.39,187.29,1.5442]
[1736430003368,1.5202,187.46,187.29,1.5442]
[1736430004069,25.45422256,187.44,187.29,1.5442]
[1736430004269,2.6698,187.36,187.29,1.5442]
[1736430004471,25.45422256,187.41,187.29,1.5442]
[1736430004678,25.45422256,187.44,187.34,2.67]
[1736430004974,25.45422256,187.44,187.29,1.5442]
[1736430005366,2.669,187.42,187.31,25.45422256]
[1736430005566,1.6096,187.49,187.32,3.1071]
[1736430005969,2.6687,187.44,187.34,25.45422256]
[1736430006171,1.6096,187.49,187.34,25.45422256]
[1736430006473,1.6096,187.49,187.32,3.1071]
[1736430006772,25.45422256,187.53,187.36,25.45422256]
[1736430006973,25.45422256,187.5,187.33,25.45422256]
[1736430007174,1.5652,187.52,187.36,25.45422256]
[1736430007973,25.45422256,187.53,187.39,25.45422256]
[1736430008174,25.45422256,187.53,187.4,1.49]
[1736430008371,2.6677,187.51,187.47,2.6681]
[1736430009174,2.6674,187.54,187.5,2.6677]
[1736430009373,25.45422256,187.59,187.45,25.45422256]
[1736430009576,25.45422256,187.62,187.45,25.45422256]
[1736430010281,2.6664,187.6,187.48,25.45422256]
[1736430010881,25.45422256,187.62,187.48,25.45422256]
[1736430011071,25.45422256,187.59,187.43,3.1799]
[1736430011275,25.45422256,187.56,187.43,3.1799]
[1736430011478,25.45422256,187.53,187.43,3.1799]
[1736430011877,25.45422256,187.56,187.43,3.1799]
[1736430012072,25.45422256,187.62,187.45,25.45422256]
[1736430012471,25.45422256,187.59,187.45,25.45422256]
[1736430012676,1.5214,187.64,187.45,25.45422256]
[1736430012875,1.5214,187.64,187.43,3.1799]
[1736430012876,25.45422256,187.56,187.43,3.1799]
[1736430013280,25.45422256,187.53,187.43,3.1799]
[1736430013485,2.6681,187.49,187.43,5.8486]
[1736430013782,25.45422256,187.56,187.43,3.1799]
[1736430014170,2.6671,187.55,187.43,3.1799]
[1736430014375,25.45422256,187.59,187.44,25.45422256]
[1736430015078,2.6667,187.58,187.53,2.6673]
[1736430015273,25.45422256,187.62,187.44,25.45422256]
[1736430015779,1.5214,187.64,187.47,25.45422256]
[1736430016483,2.6665,187.6,187.55,2.667]
[1736430016678,1.5214,187.64,187.5,25.45422256]
[1736430016883,25.45422256,187.68,187.51,1.5221]
[1736430017685,28.55062256,187.71,187.53,25.45422256]
[1736430017980,28.55062256,187.71,187.54,3.1722]
[1736430018179,27.03232256,187.71,187.56,25.45422256]
[1736430018588,25.45422256,187.74,187.56,25.45422256]
[1736430018886,25.45422256,187.74,187.59,25.45422256]
[1736430019081,3.0202,187.76,187.59,25.45422256]
[1736430019285,3.0202,187.76,187.62,25.45422256]
[1736430019483,2.6644,187.74,187.69,2.6651]
[1736430019881,2.6642,187.76,187.7,2.6649]
[1736430020082,25.45422256,187.8,187.64,3.2123]
[1736430020288,1.5296,187.82,187.64,3.2123]
[1736430020289,25.45422256,187.77,187.64,3.2123]
[1736430020487,25.45422256,187.77,187.66,2.6654]
[1736430020682,25.45422256,187.71,187.56,25.45422256]
[1736430020887,25.45422256,187.71,187.57,1.4765]
[1736430021283,25.45422256,187.77,187.59,25.45422256]
[1736430021480,2.6648,187.72,187.66,2.6655]
[1736430021786,2.6648,187.72,187.59,25.45422256]
[1736430021988,25.45422256,187.77,187.59,25.45422256]
[1736430022186,25.45422256,187.77,187.62,25.45422256]
[1736430022582,25.45422256,187.74,187.59,25.45422256]
[1736430022785,25.45422256,187.68,187.57,1.4765]
[1736430023383,25.45422256,187.65,187.55,3.1241]
[1736430023586,25.45422256,187.62,187.5,1.4905]
[1736430023891,1.6371,187.72,187.53,25.45422256]
[1736430024090,25.45422256,187.69,187.53,25.45422256]
[1736430024391,2.6658,187.65,187.59,2.6664]
[1736430024587,1.6371,187.72,187.5,28.49882256]
[1736430024588,25.45422256,187.66,187.5,28.49882256]
[1736430024888,28.11982256,187.66,187.6,2.6663]
[1736430025190,25.45422256,187.66,187.5,28.49882256]
[1736430025393,25.45422256,187.66,187.5,3.0446]
[1736430025586,25.45422256,187.66,187.57,2.6668]
[1736430025989,2.6663,187.61,187.57,2.6668]
[1736430026190,25.45422256,187.66,187.5,3.0446]
[1736430026389,25.45422256,187.66,187.5,28.49882256]
[1736430026590,1.6371,187.72,187.5,28.49882256]
[1736430026591,2.6655,187.67,187.53,25.45422256]
[1736430026789,25.45422256,187.69,187.57,2.6667]
[1736430027091,25.45422256,187.66,187.57,2.6667]
[1736430027589,25.45422256,187.63,187.5,3.0446]
[1736430027787,25.45422256,187.6,187.5,3.0446]
[1736430028181,25.45422256,187.6,187.44,25.45422256]
[1736430028387,25.45422256,187.57,187.44,1.5564]
[1736430028692,2.668,187.49,187.44,4.2249]
[1736430028891,25.45422256,187.54,187.44,1.5564]
[1736430029390,25.45422256,187.54,187.45,2.6685]
[1736430029790,3.055,187.56,187.44,1.5564]
[1736430030586,25.45422256,187.54,187.44,1.5564]
[1736430030793,3.055,187.56,187.44,1.5564]
[1736430030989,3.055,187.56,187.52,2.6675]
[1736430031192,1.5771,187.56,187.52,2.6675]
[1736430031385,2.6668,187.57,187.52,2.6675]
[1736430031592,2.6668,187.58,187.52,2.6675]
[1736430032093,28.12072256,187.6,187.54,2.6672]
[1736430032292,28.12072256,187.6,187.44,27.01062256]
[1736430032293,28.47232256,187.63,187.44,27.01062256]
[1736430032493,28.47232256,187.63,187.47,25.45422256]
[1736430032695,2.6665,187.6,187.54,2.6672]
[1736430032995,28.47232256,187.63,187.47,25.45422256]
[1736430033196,28.47232256,187.63,187.44,27.01062256]
[1736430033394,25.45422256,187.6,187.44,27.01062256]
[1736430034495,28.47232256,187.63,187.44,27.01062256]
[1736430034695,25.45422256,187.6,187.44,27.01062256]
[1736430034897,25.45422256,187.57,187.44,1.5564]
[1736430035697,28.47232256,187.63,187.44,27.01062256]
[1736430035893,2.6667,187.58,187.49,2.6679]
[1736430036101,28.47232256,187.63,187.44,27.01062256]
[1736430036492,2.6667,187.59,187.53,2.6674]
[1736430036693,2.6667,187.59,187.44,27.01062256]
[1736430036993,28.47232256,187.63,187.47,25.45422256]
[1736430037189,3.0181,187.63,187.5,25.45422256]
[1736430037389,3.0181,187.63,187.51,3.0971]
[1736430037995,1.5,187.63,187.57,2.6667]
[1736430038190,15.72811264,187.6,187.46,15.72811264]
[1736430038397,2.6677,187.51,187.47,2.6682]
[1736430038599,15.72811264,187.57,187.44,1.5564]
[1736430039403,25.58479166,187.53,187.4,1.5326]
[1736430039596,25.58479166,187.47,187.29,25.58479166]
[1736430039796,25.58479166,187.47,187.3,4.5671]
[1736430040001,1.4914,187.46,187.35,2.6699]
[1736430040397,1.4914,187.46,187.3,4.5671]
[1736430041001,2.6696,187.38,187.32,2.6702]
[1736430041203,25.58479166,187.44,187.3,4.5671]
[1736430041905,2.6694,187.39,187.33,2.6701]
[1736430042099,25.58479166,187.44,187.3,4.5671]
[1736430042503,2.6697,187.38,187.32,2.6702]
[1736430042805,25.58479166,187.44,187.3,3.0744]
[1736430043202,25.58479166,187.44,187.36,0.1968]
[1736430043603,2.6688,187.43,187.37,2.6695]
[1736430043809,1.4914,187.46,187.37,2.6695]
[1736430044111,2.6692,187.4,187.36,0.1968]
[1736430044312,25.58479166,187.44,187.36,0.1968]
[1736430044712,2.669,187.42,187.36,0.1968]
[1736430045013,1.4914,187.46,187.36,0.1968]
[1736430045407,2.6692,187.41,187.36,0.1968]
[1736430046005,25.58479166,187.44,187.36,0.1968]
[1736430046208,25.58479166,187.41,187.36,0.1968]
[1736430046515,2.6697,187.37,187.36,0.1968]
[1736430046707,25.58479166,187.41,187.36,0.1968]
[1736430047014,25.58479166,187.44,187.36,0.1968]
[1736430047709,2.6694,187.39,187.36,0.1968]
[1736430047912,25.58479166,187.41,187.36,0.1968]
[1736430048114,25.58479166,187.44,187.36,0.1968]
[1736430048809,2.6692,187.4,187.36,2.8666]
[1736430049010,2.6692,187.4,187.36,0.1968]
[1736430049203,25.58479166,187.44,187.36,0.1968]
[1736430049708,25.58479166,187.44,187.3,1.4756]
[1736430049906,25.58479166,187.41,187.3,1.4756]
[1736430050108,25.58479166,187.44,187.3,1.4756]
[1736430050415,25.58479166,187.41,187.3,1.4756]
[1736430050714,25.58479166,187.41,187.25,27.21419166]
[1736430050907,25.58479166,187.38,187.22,25.58479166]
[1736430051104,2.6704,187.33,187.28,2.6709]
[1736430051304,25.58479166,187.38,187.22,25.58479166]
[1736430051504,2.6701,187.34,187.29,2.6707]
[1736430052213,2.67,187.35,187.29,2.6707]
[1736430052414,25.58479166,187.38,187.29,2.6707]
[1736430052611,2.6699,187.36,187.25,25.58479166]
[1736430052812,25.58479166,187.38,187.23,4.5483]
[1736430053210,1.5195,187.4,187.25,25.58479166]
[1736430053617,1.5195,187.4,187.28,25.58479166]
[1736430053810,2.6694,187.39,187.28,25.58479166]
[1736430054206,25.58479166,187.44,187.28,25.58479166]
[1736430054916,27.13079166,187.47,187.31,25.58479166]
[1736430055113,27.13079166,187.47,187.32,1.5926]
[1736430055416,2.669,187.42,187.32,1.5926]
[1736430055618,25.58479166,187.47,187.33,3.0607]
[1736430055916,25.58479166,187.47,187.37,2.6695]
[1736430056108,25.58479166,187.47,187.33,3.0607]
[1736430056315,25.58479166,187.47,187.33,28.64549166]
[1736430056515,3.0654,187.53,187.33,28.64549166]
[1736430056516,82.04044371,187.5,187.33,28.64549166]
[1736430057014,25.58479166,187.5,187.33,28.64549166]
[1736430057517,2.6687,187.44,187.4,2.6692]
[1736430057718,25.58479166,187.47,187.33,28.64549166]
[1736430058018,2.6687,187.44,187.33,3.0607]
[1736430058218,25.58479166,187.5,187.33,3.0607]
[1736430059220,2.6684,187.47,187.43,2.6688]
[1736430059420,15.75143295,187.51,187.35,15.75143295]
[1736430059817,15.75143295,187.51,187.29,15.75143295]
[1736430059818,15.75143295,187.45,187.08,16.02]
[1736430060119,15.75143295,187.37,187.22,15.75143295]
[1736430060321,2.6706,187.31,187.25,2.6712]
[1736430060618,15.75143295,187.37,187.23,3.1403]
[1736430060814,2.6704,187.32,187.28,2.6709]
[1736430061022,15.75143295,187.37,187.23,4.6724]
[1736430061619,2.6702,187.34,187.23,4.6724]
[1736430062214,2.6699,187.36,187.23,4.6724]
[1736430062418,24.03143295,187.4,187.23,4.6724]
[1736430062919,1.4764,187.43,187.25,15.75143295]
[1736430063115,1.496,187.44,187.36,2.6697]
[1736430063315,2.6687,187.44,187.32,25.60389945]
[1736430063624,2.6687,187.44,187.33,4.4892]
[1736430064222,2.6685,187.45,187.4,2.6692]
[1736430064413,2.6685,187.45,187.33,4.4892]
[1736430064414,25.60389945,187.52,187.35,25.60389945]
[1736430064617,25.60389945,187.55,187.38,25.60389945]
[1736430064820,25.60389945,187.55,187.36,8.2]
[1736430064821,25.60389945,187.55,187.41,25.60389945]
[1736430065018,25.60389945,187.55,187.42,1.592]
[1736430065416,25.60389945,187.55,187.47,2.6682]
[1736430065623,25.60389945,187.58,187.42,1.592]
[1736430065920,25.60389945,187.52,187.42,1.592]
[1736430066417,25.60389945,187.52,187.36,8.2]
[1736430066611,25.60389945,187.49,187.37,1.592]
[1736430067214,25.60389945,187.49,187.4,2.6692]
[1736430067215,2.6686,187.45,187.4,2.6692]
[1736430067413,25.60389945,187.46,187.33,2.9571]
[1736430067617,2.669,187.43,187.36,2.6697]
[1736430067822,25.60389945,187.46,187.34,1.5777]
[1736430068413,25.60389945,187.43,187.33,2.9571]
[1736430070126,1.6266,187.45,187.33,2.9571]
[1736430070330,2.6691,187.41,187.37,2.6696]
[1736430070519,2.6691,187.41,187.33,2.9571]
[1736430071030,2.669,187.42,187.33,2.9571]
[1736430071521,2.6691,187.41,187.36,2.6697]
[1736430071721,1.6266,187.45,187.33,2.9571]
[1736430071922,1.6266,187.45,187.3,3.0469]
[1736430072830,2.6691,187.41,187.36,2.6697]
[1736430073020,1.6266,187.45,187.3,3.0469]
[1736430073627,1.6266,187.45,187.31,25.60389945]
[1736430073817,2.6692,187.41,187.31,25.60389945]
[1736430074024,1.6266,187.45,187.3,3.0469]
[1736430074529,2.6695,187.39,187.34,2.67]
[1736430075029,25.60389945,187.43,187.33,2.6702]
[1736430075234,25.60389945,187.43,187.3,3.0469]
[1736430075534,2.6691,187.41,187.37,2.6696]
[1736430076930,2.669,187.42,187.37,2.6696]
[1736430077322,1.6266,187.45,187.35,2.6699]
[1736430077527,1.6266,187.45,187.3,3.0469]
[1736430077528,2.6688,187.43,187.3,3.0469]
[1736430077725,1.6266,187.45,187.3,3.0469]
[1736430078228,2.6692,187.41,187.3,3.0469]
[1736430078425,25.60389945,187.46,187.39,2.6694]
[1736430078621,2.6688,187.43,187.31,25.60389945]
[1736430078825,25.60389945,187.46,187.31,25.60389945]
[1736430079026,25.60389945,187.49,187.31,25.60389945]
[1736430079229,25.60389945,187.49,187.34,25.60389945]
[1736430079733,2.6684,187.47,187.34,25.60389945]
[1736430080127,2.6684,187.47,187.43,2.6688]
[1736430080329,25.60389945,187.49,187.34,25.60389945]
[1736430080528,25.60389945,187.49,187.42,2.6688]
[1736430080727,25.60389945,187.49,187.3,3.0469]
[1736430081033,25.60389945,187.46,187.38,2.6695]
[1736430081424,25.60389945,187.46,187.3,3.0469]
[1736430081624,2.6689,187.43,187.3,3.0469]
[1736430082028,2.6689,187.43,187.3,10.9269]
[1736430082334,25.60389945,187.46,187.4,2.6691]
[1736430082524,25.60389945,187.46,187.32,25.60389945]
[1736430082726,2.6688,187.43,187.39,2.6693]
[1736430083130,25.60389945,187.46,187.32,25.60389945]
[1736430083331,2.6687,187.44,187.31,15.75747551]
[1736430083830,2.6687,187.44,187.39,2.6693]
[1736430084424,15.75747551,187.47,187.3,1.4982]
[1736430084723,15.75747551,187.47,187.31,3.0265]
[1736430084928,15.75747551,187.44,187.31,3.0265]
[1736430085128,15.75747551,187.41,187.3,1.4982]
[1736430085327,3.0996,187.43,187.3,1.4982]
[1736430086225,3.0996,187.43,187.34,2.67]
[1736430086226,2.6695,187.38,187.34,2.67]
[1736430087232,3.0996,187.43,187.36,2.6698]
[1736430087537,3.0996,187.43,187.3,1.4982]
[1736430087734,2.6692,187.41,187.37,2.6696]
[1736430088039,15.75747551,187.47,187.32,15.75747551]
[1736430088538,2.6691,187.42,187.38,2.6695]
[1736430088728,15.75747551,187.47,187.38,2.6695]
[1736430088929,2.6692,187.41,187.37,2.6696]
[1736430089131,2.6692,187.41,187.3,1.4982]
[1736430089132,15.75747551,187.44,187.3,1.4982]
[1736430089532,15.75747551,187.44,187.37,2.6696]
[1736430090029,2.6693,187.4,187.37,2.6696]
[1736430090738,2.6693,187.4,187.36,2.6698]
[1736430090929,2.6691,187.41,187.3,1.4982]
[1736430091132,15.75747551,187.44,187.3,1.4982]
[1736430091337,15.75747551,187.47,187.4,2.6692]
[1736430091533,2.669,187.42,187.3,1.4982]
[1736430091731,2.669,187.42,187.38,2.6694]
[1736430092233,2.669,187.42,187.3,1.4982]
[1736430093137,2.6694,187.4,187.3,1.4982]
[1736430093440,15.75747551,187.44,187.3,1.4982]
[1736430093652,2.6691,187.42,187.3,1.4982]
[1736430093841,15.75747551,187.44,187.3,1.4982]
[1736430094340,2.6691,187.41,187.37,2.6696]
[1736430094542,2.6691,187.41,187.3,1.4982]
[1736430095634,15.75747551,187.44,187.3,1.4982]
[1736430096036,15.75747551,187.41,187.3,1.4982]
[1736430096941,3.088,187.43,187.3,1.4982]
[1736430097544,15.75747551,187.41,187.3,1.4982]
[1736430097947,2.6696,187.38,187.3,1.4982]
[1736430098144,3.088,187.43,187.3,1.4982]
[1736430099044,2.6694,187.4,187.35,2.6699]
[1736430099244,3.088,187.43,187.3,1.4982]
[1736430099743,3.088,187.43,187.38,2.6694]
[1736430100249,3.088,187.43,187.3,1.4982]